[Event "Titled Tuesday Blitz January 03 Early 2023"]
[White "Leiva, Gianmarco"]
[Black "Jiganchine, Roman"]
[WhiteFideId "3804399"]
[BlackFideId "2603667"]
[WhiteElo "2392"]
[BlackElo "2205"]
[Result "1-0"]
[Round "01"]
[TimeControl "180+2"]
[Date "2023.01.03"]
[WhiteClock "0:00:05"]
[BlackClock "0:00:01"]

1. d4 {[%clk 0:02:59]}  d5 {[%clk 0:02:58]} 2. c4 {[%clk 0:02:59]}  e6 {[%clk 0:02:43]} 3. Nc3 {[%clk 0:02:53]}  Nf6 {[%clk 0:02:39]} 4. Nf3 {[%clk 0:02:53]}  c5 {[%clk 0:02:37]} 5. cxd5 {[%clk 0:02:48]}  cxd4 {[%clk 0:02:36]} 6. Qxd4 {[%clk 0:02:47]}  exd5 {[%clk 0:02:34]} 7. Bg5 {[%clk 0:02:44]}  Be7 {[%clk 0:02:34]} 8. e3 {[%clk 0:02:39]}  O-O {[%clk 0:02:30]} 9. Rd1 {[%clk 0:02:23]}  Be6 {[%clk 0:02:22]} 10. Qd2 {[%clk 0:02:21]}  Nc6 {[%clk 0:02:09]} 11. Bd3 {[%clk 0:02:19]}  h6 {[%clk 0:02:09]} 12. Bh4 {[%clk 0:02:19]}  Qb6 {[%clk 0:02:06]} 13. O-O {[%clk 0:02:13]}  Rfd8 {[%clk 0:02:02]} 14. Bb1 {[%clk 0:02:09]}  Ne4 {[%clk 0:01:31]} 15. Qc2 {[%clk 0:01:49]}  Nb4 {[%clk 0:01:16]} 16. Qe2 {[%clk 0:01:32]}  Bxh4 {[%clk 0:01:06]} 17. Nxh4 {[%clk 0:01:32]}  Nf6 {[%clk 0:00:29]} 18. Nf3 {[%clk 0:01:15]}  Rac8 {[%clk 0:00:26]} 19. h3 {[%clk 0:01:06]}  Nc6 {[%clk 0:00:21]} 20. Nd4 {[%clk 0:01:05]}  Nxd4 {[%clk 0:00:18]} 21. Rxd4 {[%clk 0:01:05]}  Rc4 {[%clk 0:00:17]} 22. Rfd1 {[%clk 0:01:05]}  Rb4 {[%clk 0:00:14]} 23. b3 {[%clk 0:00:49]}  a5 {[%clk 0:00:13]} 24. Qd2 {[%clk 0:00:41]}  Rxd4 {[%clk 0:00:10]} 25. Qxd4 {[%clk 0:00:41]}  Qb4 {[%clk 0:00:10]} 26. Qxb4 {[%clk 0:00:29]}  axb4 {[%clk 0:00:10]} 27. Ne2 {[%clk 0:00:30]}  Rc8 {[%clk 0:00:10]} 28. Rd4 {[%clk 0:00:30]}  Ne4 {[%clk 0:00:07]} 29. Rxb4 {[%clk 0:00:28]}  Nc3 {[%clk 0:00:07]} 30. Nxc3 {[%clk 0:00:23]}  Rxc3 {[%clk 0:00:08]} 31. Kh2 {[%clk 0:00:20]}  Rc1 {[%clk 0:00:05]} 32. Bd3 {[%clk 0:00:20]}  Rd1 {[%clk 0:00:04]} 33. Rd4 {[%clk 0:00:19]}  Ra1 {[%clk 0:00:04]} 34. a4 {[%clk 0:00:13]}  b6 {[%clk 0:00:04]} 35. Kg3 {[%clk 0:00:08]}  g6 {[%clk 0:00:04]} 36. Rb4 {[%clk 0:00:06]}  Kg7 {[%clk 0:00:05]} 37. Rxb6 {[%clk 0:00:06]}  Ra3 {[%clk 0:00:05]} 38. Be2 {[%clk 0:00:07]}  d4 {[%clk 0:00:04]} 39. exd4 {[%clk 0:00:05]}  Bxb3 {[%clk 0:00:05]} 40. Bf3 {[%clk 0:00:05]}  Bd5 {[%clk 0:00:04]} 41. Ra6 {[%clk 0:00:04]}  Bxf3 {[%clk 0:00:04]} 42. gxf3 {[%clk 0:00:05]}  Rd3 {[%clk 0:00:04]} 43. Rd6 {[%clk 0:00:05]}  Ra3 {[%clk 0:00:04]} 44. Ra6 {[%clk 0:00:05]}  Rd3 {[%clk 0:00:04]} 45. Kf4 {[%clk 0:00:05]}  Rxd4+ {[%clk 0:00:04]} 46. Kg3 {[%clk 0:00:05]}  Rd2 {[%clk 0:00:04]} 47. f4 {[%clk 0:00:05]}  h5 {[%clk 0:00:04]} 48. Kf3 {[%clk 0:00:05]}  Ra2 {[%clk 0:00:04]} 49. Ra7 {[%clk 0:00:04]}  Ra3+ {[%clk 0:00:04]} 50. Kg2 {[%clk 0:00:04]}  Ra2 {[%clk 0:00:03]} 51. h4 {[%clk 0:00:04]}  Ra3 {[%clk 0:00:03]} 52. a5 {[%clk 0:00:04]}  Kf6 {[%clk 0:00:03]} 53. a6 {[%clk 0:00:02]}  Ke6 {[%clk 0:00:03]} 54. Ra8 {[%clk 0:00:02]}  Kf6 {[%clk 0:00:03]} 55. a7 {[%clk 0:00:02]}  Kg7 {[%clk 0:00:03]} 56. Kf1 {[%clk 0:00:02]}  Kh7 {[%clk 0:00:02]} 57. Ke2 {[%clk 0:00:03]}  Kg7 {[%clk 0:00:02]} 58. Kd2 {[%clk 0:00:03]}  Ra2+ {[%clk 0:00:02]} 59. Kd3 {[%clk 0:00:03]}  Ra3+ {[%clk 0:00:02]} 60. Ke4 {[%clk 0:00:04]}  Ra4+ {[%clk 0:00:02]} 61. Ke5 {[%clk 0:00:04]}  Ra5+ {[%clk 0:00:03]} 62. Kd6 {[%clk 0:00:04]}  Ra1 {[%clk 0:00:02]} 63. f5 {[%clk 0:00:04]}  gxf5 {[%clk 0:00:02]} 64. Ke5 {[%clk 0:00:05]}  Ra5+ {[%clk 0:00:02]} 65. Kf4 {[%clk 0:00:06]}  Kf6 {[%clk 0:00:01]} 66. Kf3 {[%clk 0:00:03]}  Ra3+ {[%clk 0:00:01]} 67. Kg2 {[%clk 0:00:03]}  Ra4 {[%clk 0:00:02]} 68. f3 {[%clk 0:00:03]}  Ra3 {[%clk 0:00:02]} 69. Kg3 {[%clk 0:00:03]}  Ra4 {[%clk 0:00:02]} 70. Kf2 {[%clk 0:00:04]}  Ra3 {[%clk 0:00:02]} 71. Ke2 {[%clk 0:00:04]}  Ra4 {[%clk 0:00:02]} 72. Kd3 {[%clk 0:00:05]}  Ra1 {[%clk 0:00:02]} 73. Kd4 {[%clk 0:00:05]}  Ra4+ {[%clk 0:00:02]} 74. Kd5 {[%clk 0:00:05]}  Ra5+ {[%clk 0:00:03]} 75. Kc6 {[%clk 0:00:06]}  Ra1 {[%clk 0:00:03]} 76. Kd7 {[%clk 0:00:06]}  Rd1+ {[%clk 0:00:03]} 77. Ke8 {[%clk 0:00:07]}  Re1+ {[%clk 0:00:03]} 78. Kf8 {[%clk 0:00:07]}  Ra1 {[%clk 0:00:03]} 79. Kg8 {[%clk 0:00:08]}  Ra6 {[%clk 0:00:02]} 80. Kh7 {[%clk 0:00:08]}  Ra5 {[%clk 0:00:02]} 81. Kh6 {[%clk 0:00:08]}  Ra6 {[%clk 0:00:02]} 82. Kxh5 {[%clk 0:00:08]}  Kg7 {[%clk 0:00:02]} 83. Kg5 {[%clk 0:00:08]}  Ra5 {[%clk 0:00:02]} 84. h5 {[%clk 0:00:07]}  f6+ {[%clk 0:00:01]} 85. Kf4 {[%clk 0:00:07]}  Kh7 {[%clk 0:00:01]} 86. Ke3 {[%clk 0:00:05]} 1-0


[Site "https://www.chess.com"]

[Event "Titled Tuesday Blitz January 03 Early 2023"]
[White "Kovacsy, Barnabas"]
[Black "Salimova, Nurgyul"]
[WhiteFideId "769290"]
[BlackFideId "2915138"]
[WhiteElo "2245"]
[BlackElo "2391"]
[Result "1/2-1/2"]
[Round "01"]
[TimeControl "180+2"]
[Date "2023.01.03"]
[WhiteClock "0:00:18"]
[BlackClock "0:00:04"]

1. e4 {[%clk 0:02:59]}  c6 {[%clk 0:02:59]} 2. d4 {[%clk 0:02:52]}  d5 {[%clk 0:03:00]} 3. Nc3 {[%clk 0:02:51]}  dxe4 {[%clk 0:03:00]} 4. Nxe4 {[%clk 0:02:52]}  Nf6 {[%clk 0:03:00]} 5. Nxf6+ {[%clk 0:02:51]}  exf6 {[%clk 0:03:01]} 6. c3 {[%clk 0:02:50]}  Bd6 {[%clk 0:03:02]} 7. Bd3 {[%clk 0:02:50]}  O-O {[%clk 0:03:02]} 8. Ne2 {[%clk 0:02:51]}  Re8 {[%clk 0:03:01]} 9. Qc2 {[%clk 0:02:51]}  h5 {[%clk 0:03:01]} 10. O-O {[%clk 0:02:49]}  h4 {[%clk 0:03:00]} 11. h3 {[%clk 0:02:50]}  Nd7 {[%clk 0:02:56]} 12. Bd2 {[%clk 0:02:45]}  Nf8 {[%clk 0:02:52]} 13. Rad1 {[%clk 0:02:42]}  Be6 {[%clk 0:02:42]} 14. Nf4 {[%clk 0:02:32]}  Bxf4 {[%clk 0:02:42]} 15. Bxf4 {[%clk 0:02:32]}  Qa5 {[%clk 0:02:20]} 16. b3 {[%clk 0:02:13]}  Rad8 {[%clk 0:02:13]} 17. c4 {[%clk 0:02:00]}  Qh5 {[%clk 0:01:51]} 18. Be2 {[%clk 0:01:43]}  Qf5 {[%clk 0:01:28]} 19. Qxf5 {[%clk 0:01:42]}  Bxf5 {[%clk 0:01:29]} 20. Bf3 {[%clk 0:01:43]}  Be4 {[%clk 0:01:18]} 21. Bxe4 {[%clk 0:01:13]}  Rxe4 {[%clk 0:01:19]} 22. Be3 {[%clk 0:01:14]}  b6 {[%clk 0:01:07]} 23. Rd3 {[%clk 0:01:13]}  f5 {[%clk 0:01:05]} 24. f3 {[%clk 0:01:09]}  Re7 {[%clk 0:00:56]} 25. Bf2 {[%clk 0:01:09]}  Red7 {[%clk 0:00:46]} 26. Rfd1 {[%clk 0:01:06]}  g5 {[%clk 0:00:45]} 27. Kf1 {[%clk 0:00:58]}  Ne6 {[%clk 0:00:43]} 28. Be3 {[%clk 0:00:51]}  f4 {[%clk 0:00:40]} 29. Bf2 {[%clk 0:00:50]}  Ng7 {[%clk 0:00:35]} 30. Ke2 {[%clk 0:00:47]}  Nf5 {[%clk 0:00:35]} 31. d5 {[%clk 0:00:41]}  c5 {[%clk 0:00:33]} 32. Kd2 {[%clk 0:00:38]}  Re7 {[%clk 0:00:27]} 33. Re1 {[%clk 0:00:35]}  Rxe1 {[%clk 0:00:26]} 34. Kxe1 {[%clk 0:00:35]}  Kg7 {[%clk 0:00:24]} 35. Kd1 {[%clk 0:00:32]}  Kf6 {[%clk 0:00:23]} 36. Rd2 {[%clk 0:00:32]}  Nd6 {[%clk 0:00:19]} 37. Kc2 {[%clk 0:00:29]}  Re8 {[%clk 0:00:18]} 38. Kd3 {[%clk 0:00:29]}  Kf5 {[%clk 0:00:14]} 39. Re2 {[%clk 0:00:29]}  Rxe2 {[%clk 0:00:12]} 40. Kxe2 {[%clk 0:00:30]}  Ke5 {[%clk 0:00:12]} 41. Kd3 {[%clk 0:00:31]}  f6 {[%clk 0:00:10]} 42. Be1 {[%clk 0:00:31]}  Kf5 {[%clk 0:00:10]} 43. a3 {[%clk 0:00:29]}  a5 {[%clk 0:00:09]} 44. b4 {[%clk 0:00:29]}  axb4 {[%clk 0:00:08]} 45. axb4 {[%clk 0:00:30]}  Kg6 {[%clk 0:00:02]} 46. Bf2 {[%clk 0:00:27]}  Nb7 {[%clk 0:00:02]} 47. bxc5 {[%clk 0:00:27]}  bxc5 {[%clk 0:00:02]} 48. Ke4 {[%clk 0:00:23]}  Nd6+ {[%clk 0:00:03]} 49. Kd3 {[%clk 0:00:23]}  Nb7 {[%clk 0:00:03]} 50. Ke4 {[%clk 0:00:17]}  Nd6+ {[%clk 0:00:03]} 51. Kd3 {[%clk 0:00:18]}  Nb7 {[%clk 0:00:04]} 1/2-1/2


[Site "https://www.chess.com"]

[Event "Titled Tuesday Blitz January 03 Early 2023"]
[White "HSH1987"]
[Black "Kusa, Jakub"]
[BlackFideId "395595"]
[WhiteElo "2675"]
[BlackElo "2366"]
[Result "1-0"]
[Round "01"]
[TimeControl "180+2"]
[Date "2023.01.03"]
[WhiteClock "0:01:17"]
[BlackClock "0:00:17"]

1. Nf3 {[%clk 0:03:00]}  Nf6 {[%clk 0:02:58]} 2. g3 {[%clk 0:03:00]}  e6 {[%clk 0:02:58]} 3. Bg2 {[%clk 0:03:01]}  d5 {[%clk 0:02:58]} 4. O-O {[%clk 0:03:02]}  c5 {[%clk 0:02:56]} 5. d4 {[%clk 0:03:01]}  cxd4 {[%clk 0:02:56]} 6. b3 {[%clk 0:03:01]}  Nc6 {[%clk 0:02:54]} 7. Nxd4 {[%clk 0:03:00]}  Bd6 {[%clk 0:02:51]} 8. c4 {[%clk 0:02:55]}  O-O {[%clk 0:02:43]} 9. Bb2 {[%clk 0:02:53]}  Nxd4 {[%clk 0:02:25]} 10. Qxd4 {[%clk 0:02:48]}  e5 {[%clk 0:02:19]} 11. Qd2 {[%clk 0:02:47]}  d4 {[%clk 0:02:19]} 12. e3 {[%clk 0:02:47]}  dxe3 {[%clk 0:02:10]} 13. Qxe3 {[%clk 0:02:48]}  Qc7 {[%clk 0:02:07]} 14. Nc3 {[%clk 0:02:46]}  a6 {[%clk 0:02:03]} 15. Rfe1 {[%clk 0:02:37]}  Be6 {[%clk 0:01:51]} 16. Rad1 {[%clk 0:02:32]}  Rad8 {[%clk 0:01:50]} 17. h3 {[%clk 0:02:30]}  Rd7 {[%clk 0:01:41]} 18. Nd5 {[%clk 0:02:04]}  Bxd5 {[%clk 0:01:36]} 19. Bxd5 {[%clk 0:02:02]}  Nxd5 {[%clk 0:01:35]} 20. Rxd5 {[%clk 0:02:03]}  Bb4 {[%clk 0:00:58]} 21. Red1 {[%clk 0:01:51]}  Rxd5 {[%clk 0:00:57]} 22. Rxd5 {[%clk 0:01:52]}  f6 {[%clk 0:00:56]} 23. Qd3 {[%clk 0:01:51]}  Qc6 {[%clk 0:00:49]} 24. a3 {[%clk 0:01:45]}  Bc5 {[%clk 0:00:49]} 25. b4 {[%clk 0:01:45]}  Ba7 {[%clk 0:00:45]} 26. c5 {[%clk 0:01:44]}  a5 {[%clk 0:00:34]} 27. Rd6 {[%clk 0:01:43]}  Qa4 {[%clk 0:00:33]} 28. Qd5+ {[%clk 0:01:40]}  Kh8 {[%clk 0:00:33]} 29. Rd8 {[%clk 0:01:39]}  Re8 {[%clk 0:00:30]} 30. c6 {[%clk 0:01:21]}  Bxf2+ {[%clk 0:00:29]} 31. Kg2 {[%clk 0:01:19]}  Qxc6 {[%clk 0:00:17]} 32. Qxc6 {[%clk 0:01:17]} 1-0


[Site "https://www.chess.com"]

[Event "Titled Tuesday Blitz January 03 Early 2023"]
[White "Averjanov, Alexey"]
[Black "Perez Rodriguez, Jennifer"]
[WhiteFideId "14109867"]
[BlackFideId "3507831"]
[WhiteElo "2399"]
[BlackElo "2242"]
[Result "1-0"]
[Round "01"]
[TimeControl "180+2"]
[Date "2023.01.03"]
[WhiteClock "0:01:00"]
[BlackClock "0:00:13"]

1. d4 {[%clk 0:02:59]}  d5 {[%clk 0:02:58]} 2. c4 {[%clk 0:02:59]}  c6 {[%clk 0:02:56]} 3. e3 {[%clk 0:02:58]}  Nf6 {[%clk 0:02:54]} 4. Bd3 {[%clk 0:02:58]}  e6 {[%clk 0:02:51]} 5. Nd2 {[%clk 0:02:58]}  Nbd7 {[%clk 0:02:51]} 6. Ngf3 {[%clk 0:02:58]}  Bd6 {[%clk 0:02:51]} 7. O-O {[%clk 0:02:58]}  O-O {[%clk 0:02:52]} 8. e4 {[%clk 0:02:57]}  e5 {[%clk 0:02:52]} 9. cxd5 {[%clk 0:02:57]}  cxd5 {[%clk 0:02:51]} 10. exd5 {[%clk 0:02:58]}  exd4 {[%clk 0:02:50]} 11. Ne4 {[%clk 0:02:57]}  Nxe4 {[%clk 0:02:46]} 12. Bxe4 {[%clk 0:02:57]}  Nf6 {[%clk 0:02:46]} 13. Qxd4 {[%clk 0:02:56]}  Nxe4 {[%clk 0:02:39]} 14. Qxe4 {[%clk 0:02:57]}  Re8 {[%clk 0:02:39]} 15. Qd4 {[%clk 0:02:56]}  Bf5 {[%clk 0:02:28]} 16. Re1 {[%clk 0:02:55]}  Rxe1+ {[%clk 0:02:21]} 17. Nxe1 {[%clk 0:02:55]}  Qe7 {[%clk 0:02:16]} 18. Bf4 {[%clk 0:02:53]}  Bc5 {[%clk 0:02:13]} 19. Qd2 {[%clk 0:02:51]}  Rd8 {[%clk 0:02:08]} 20. Rd1 {[%clk 0:02:51]}  Bd6 {[%clk 0:01:41]} 21. Bxd6 {[%clk 0:02:42]}  Qxd6 {[%clk 0:01:41]} 22. Nf3 {[%clk 0:02:38]}  Be4 {[%clk 0:01:33]} 23. Qe3 {[%clk 0:02:32]}  Bxf3 {[%clk 0:01:25]} 24. Qxf3 {[%clk 0:02:32]}  Qe5 {[%clk 0:01:22]} 25. b3 {[%clk 0:02:24]}  h6 {[%clk 0:01:18]} 26. Qd3 {[%clk 0:02:19]}  Rd6 {[%clk 0:01:16]} 27. g3 {[%clk 0:02:18]}  Qb2 {[%clk 0:01:15]} 28. Rd2 {[%clk 0:02:09]}  Qe5 {[%clk 0:01:14]} 29. Kg2 {[%clk 0:02:08]}  h5 {[%clk 0:01:12]} 30. h4 {[%clk 0:02:08]}  g6 {[%clk 0:01:12]} 31. a4 {[%clk 0:02:07]}  Qe1 {[%clk 0:01:06]} 32. Re2 {[%clk 0:02:03]}  Qb4 {[%clk 0:00:46]} 33. Re8+ {[%clk 0:02:02]}  Kg7 {[%clk 0:00:46]} 34. Re7 {[%clk 0:01:42]}  a5 {[%clk 0:00:39]} 35. Qc4 {[%clk 0:01:29]}  Qd2 {[%clk 0:00:31]} 36. Rxb7 {[%clk 0:01:20]}  Rxd5 {[%clk 0:00:27]} 37. Rb5 {[%clk 0:01:10]}  Rxb5 {[%clk 0:00:20]} 38. axb5 {[%clk 0:01:07]}  Qd1 {[%clk 0:00:12]} 39. b6 {[%clk 0:01:03]}  Qd6 {[%clk 0:00:13]} 40. Qb5 {[%clk 0:01:00]} 1-0


[Site "https://www.chess.com"]

[Event "Titled Tuesday Blitz January 03 Early 2023"]
[White "Dardha, Arben"]
[Black "Ilkhomi, Jaloliddin"]
[WhiteFideId "4700481"]
[BlackFideId "14700948"]
[WhiteElo "2262"]
[BlackElo "1997"]
[Result "0-1"]
[Round "01"]
[TimeControl "180+2"]
[Date "2023.01.03"]
[WhiteClock "0:00:29"]
[BlackClock "0:01:56"]

1. e4 {[%clk 0:02:53]}  e6 {[%clk 0:03:00]} 2. d4 {[%clk 0:02:53]}  d5 {[%clk 0:02:59]} 3. Nd2 {[%clk 0:02:52]}  Nf6 {[%clk 0:02:59]} 4. e5 {[%clk 0:02:50]}  Nfd7 {[%clk 0:02:59]} 5. c3 {[%clk 0:02:49]}  c5 {[%clk 0:02:59]} 6. Bd3 {[%clk 0:02:49]}  Nc6 {[%clk 0:02:59]} 7. Ne2 {[%clk 0:02:47]}  cxd4 {[%clk 0:03:00]} 8. cxd4 {[%clk 0:02:45]}  f6 {[%clk 0:03:00]} 9. exf6 {[%clk 0:02:44]}  Qxf6 {[%clk 0:03:01]} 10. Nf3 {[%clk 0:02:45]}  h6 {[%clk 0:03:01]} 11. O-O {[%clk 0:02:40]}  Bd6 {[%clk 0:03:01]} 12. Be3 {[%clk 0:02:30]}  O-O {[%clk 0:02:59]} 13. Rc1 {[%clk 0:02:27]}  Rf7 {[%clk 0:02:56]} 14. Bb1 {[%clk 0:02:21]}  Nf8 {[%clk 0:02:56]} 15. Ng3 {[%clk 0:02:18]}  Rc7 {[%clk 0:02:55]} 16. Qd3 {[%clk 0:02:07]}  Bd7 {[%clk 0:02:54]} 17. Nh4 {[%clk 0:02:02]}  Rac8 {[%clk 0:02:44]} 18. Ng6 {[%clk 0:01:50]}  Nb4 {[%clk 0:02:41]} 19. Qe2 {[%clk 0:01:36]}  Nxg6 {[%clk 0:02:36]} 20. Rxc7 {[%clk 0:01:25]}  Rxc7 {[%clk 0:02:37]} 21. Nh5 {[%clk 0:01:13]}  Qf7 {[%clk 0:02:31]} 22. Qg4 {[%clk 0:01:09]}  Nc2 {[%clk 0:02:21]} 23. Bd2 {[%clk 0:00:56]}  Qf5 {[%clk 0:02:19]} 24. Qd1 {[%clk 0:00:49]}  Bb5 {[%clk 0:02:01]} 25. Ng3 {[%clk 0:00:47]}  Bxg3 {[%clk 0:01:56]} 26. Bxc2 {[%clk 0:00:38]}  Qxc2 {[%clk 0:01:54]} 27. Qxc2 {[%clk 0:00:37]}  Rxc2 {[%clk 0:01:55]} 28. Rd1 {[%clk 0:00:32]}  Be2 {[%clk 0:01:55]} 29. Rc1 {[%clk 0:00:30]}  Rxc1+ {[%clk 0:01:55]} 30. Bxc1 {[%clk 0:00:29]}  Bf4 {[%clk 0:01:56]} 0-1


[Site "https://www.chess.com"]

[Event "Titled Tuesday Blitz January 03 Early 2023"]
[White "Shuvalova, Polina"]
[Black "Mazibuko, Khanya"]
[WhiteFideId "24171760"]
[BlackFideId "14321041"]
[WhiteElo "2484"]
[BlackElo "1913"]
[Result "1-0"]
[Round "01"]
[TimeControl "180+2"]
[Date "2023.01.03"]
[WhiteClock "0:02:06"]
[BlackClock "0:01:25"]

1. d4 {[%clk 0:03:00]}  Nf6 {[%clk 0:02:49]} 2. Nf3 {[%clk 0:02:59]}  d5 {[%clk 0:02:49]} 3. Bf4 {[%clk 0:02:58]}  c5 {[%clk 0:02:48]} 4. e3 {[%clk 0:02:58]}  Nc6 {[%clk 0:02:46]} 5. Nbd2 {[%clk 0:02:57]}  e6 {[%clk 0:02:45]} 6. c3 {[%clk 0:02:56]}  cxd4 {[%clk 0:02:45]} 7. exd4 {[%clk 0:02:56]}  Nh5 {[%clk 0:02:46]} 8. Be3 {[%clk 0:02:56]}  Bd6 {[%clk 0:02:40]} 9. g3 {[%clk 0:02:55]}  Nf6 {[%clk 0:02:18]} 10. Bd3 {[%clk 0:02:54]}  Ng4 {[%clk 0:02:15]} 11. Qe2 {[%clk 0:02:51]}  Nxe3 {[%clk 0:02:14]} 12. fxe3 {[%clk 0:02:49]}  O-O {[%clk 0:02:08]} 13. e4 {[%clk 0:02:49]}  f6 {[%clk 0:02:05]} 14. O-O-O {[%clk 0:02:46]}  Bd7 {[%clk 0:01:59]} 15. Kb1 {[%clk 0:02:39]}  Rb8 {[%clk 0:01:58]} 16. g4 {[%clk 0:02:34]}  b5 {[%clk 0:01:58]} 17. g5 {[%clk 0:02:20]}  fxg5 {[%clk 0:01:52]} 18. e5 {[%clk 0:02:19]}  Be7 {[%clk 0:01:48]} 19. h4 {[%clk 0:02:18]}  g4 {[%clk 0:01:42]} 20. Ng5 {[%clk 0:02:17]}  h6 {[%clk 0:01:38]} 21. Qxg4 {[%clk 0:02:15]}  b4 {[%clk 0:01:28]} 22. Nxe6 {[%clk 0:02:09]}  Bxe6 {[%clk 0:01:25]} 23. Qxe6+ {[%clk 0:02:08]}  Kh8 {[%clk 0:01:25]} 24. Qg6 {[%clk 0:02:06]} 1-0


[Site "https://www.chess.com"]

[Event "Titled Tuesday Blitz January 03 Early 2023"]
[White "Babikov, Ivan"]
[Black "Demin, Vladimir"]
[WhiteFideId "4161106"]
[BlackFideId "4167457"]
[WhiteElo "2239"]
[BlackElo "2430"]
[Result "0-1"]
[Round "01"]
[TimeControl "180+2"]
[Date "2023.01.03"]
[WhiteClock "0:00:14"]
[BlackClock "0:00:43"]

1. d4 {[%clk 0:02:59]}  Nf6 {[%clk 0:02:55]} 2. Bg5 {[%clk 0:02:58]}  d5 {[%clk 0:02:54]} 3. Bxf6 {[%clk 0:02:57]}  gxf6 {[%clk 0:02:53]} 4. e3 {[%clk 0:02:57]}  c5 {[%clk 0:02:51]} 5. Nf3 {[%clk 0:02:55]}  Nc6 {[%clk 0:02:50]} 6. c3 {[%clk 0:02:55]}  e5 {[%clk 0:02:49]} 7. Be2 {[%clk 0:02:40]}  Rg8 {[%clk 0:02:42]} 8. g3 {[%clk 0:02:24]}  Bh3 {[%clk 0:02:27]} 9. Na3 {[%clk 0:01:54]}  cxd4 {[%clk 0:02:19]} 10. exd4 {[%clk 0:01:51]}  Bxa3 {[%clk 0:02:20]} 11. bxa3 {[%clk 0:01:51]}  Qa5 {[%clk 0:02:19]} 12. Qd2 {[%clk 0:01:35]}  O-O-O {[%clk 0:02:14]} 13. Rb1 {[%clk 0:01:21]}  Qxa3 {[%clk 0:02:08]} 14. Rb3 {[%clk 0:01:18]}  Qa5 {[%clk 0:02:05]} 15. Qb2 {[%clk 0:01:15]}  Bg2 {[%clk 0:01:58]} 16. Rg1 {[%clk 0:01:14]}  Bxf3 {[%clk 0:01:54]} 17. Bxf3 {[%clk 0:01:14]}  Nxd4 {[%clk 0:01:52]} 18. Rxb7 {[%clk 0:00:40]}  Nxf3+ {[%clk 0:01:50]} 19. Kf1 {[%clk 0:00:40]}  Qa6+ {[%clk 0:01:35]} 20. Rb5 {[%clk 0:00:28]}  Nxg1 {[%clk 0:01:18]} 21. Qb4 {[%clk 0:00:28]}  Nf3 {[%clk 0:00:56]} 22. Qc5+ {[%clk 0:00:28]}  Kd7 {[%clk 0:00:55]} 23. Qxd5+ {[%clk 0:00:28]}  Ke7 {[%clk 0:00:55]} 24. Qc5+ {[%clk 0:00:24]}  Rd6 {[%clk 0:00:52]} 25. Kg2 {[%clk 0:00:15]}  Rd8 {[%clk 0:00:42]} 26. Kxf3 {[%clk 0:00:14]}  Qc6+ {[%clk 0:00:43]} 0-1


[Site "https://www.chess.com"]

[Event "Titled Tuesday Blitz January 03 Early 2023"]
[White "Darini, Pouria"]
[Black "Mayaud, Raphael"]
[WhiteFideId "12502200"]
[BlackFideId "627151"]
[WhiteElo "2401"]
[BlackElo "2201"]
[Result "1-0"]
[Round "01"]
[TimeControl "180+2"]
[Date "2023.01.03"]
[WhiteClock "0:01:40"]
[BlackClock "0:00:01"]

1. e4 {[%clk 0:03:00]}  d5 {[%clk 0:02:59]} 2. exd5 {[%clk 0:03:00]}  Qxd5 {[%clk 0:02:59]} 3. Nc3 {[%clk 0:03:00]}  Qa5 {[%clk 0:02:59]} 4. d4 {[%clk 0:03:01]}  c6 {[%clk 0:02:59]} 5. Nf3 {[%clk 0:03:01]}  Nf6 {[%clk 0:03:00]} 6. Bc4 {[%clk 0:02:58]}  Bf5 {[%clk 0:02:59]} 7. Ne5 {[%clk 0:02:58]}  e6 {[%clk 0:02:59]} 8. Qe2 {[%clk 0:02:47]}  Nbd7 {[%clk 0:02:56]} 9. O-O {[%clk 0:02:44]}  Be7 {[%clk 0:02:29]} 10. Re1 {[%clk 0:02:37]}  Nxe5 {[%clk 0:02:27]} 11. dxe5 {[%clk 0:02:36]}  Nd5 {[%clk 0:02:27]} 12. Ne4 {[%clk 0:02:34]}  Bxe4 {[%clk 0:02:26]} 13. Qxe4 {[%clk 0:02:33]}  O-O {[%clk 0:02:10]} 14. c3 {[%clk 0:02:23]}  Rfd8 {[%clk 0:02:05]} 15. h4 {[%clk 0:02:24]}  Bf8 {[%clk 0:01:54]} 16. h5 {[%clk 0:02:22]}  Ne7 {[%clk 0:01:43]} 17. Bg5 {[%clk 0:02:21]}  Rd7 {[%clk 0:01:39]} 18. Rad1 {[%clk 0:02:18]}  Rad8 {[%clk 0:01:39]} 19. Rd3 {[%clk 0:02:11]}  Rxd3 {[%clk 0:01:32]} 20. Bxd3 {[%clk 0:02:11]}  g6 {[%clk 0:01:32]} 21. hxg6 {[%clk 0:02:10]}  hxg6 {[%clk 0:01:30]} 22. Bf6 {[%clk 0:02:05]}  Nd5 {[%clk 0:00:26]} 23. Bxd8 {[%clk 0:02:03]}  Qxd8 {[%clk 0:00:27]} 24. g3 {[%clk 0:02:02]}  Bc5 {[%clk 0:00:23]} 25. Kg2 {[%clk 0:02:03]}  Ne7 {[%clk 0:00:21]} 26. Re2 {[%clk 0:01:55]}  Qd5 {[%clk 0:00:20]} 27. b4 {[%clk 0:01:49]}  Bb6 {[%clk 0:00:18]} 28. a4 {[%clk 0:01:49]}  a5 {[%clk 0:00:18]} 29. bxa5 {[%clk 0:01:47]}  Bxa5 {[%clk 0:00:17]} 30. c4 {[%clk 0:01:41]}  Qxe4+ {[%clk 0:00:13]} 31. Bxe4 {[%clk 0:01:41]}  Bc3 {[%clk 0:00:11]} 32. f4 {[%clk 0:01:40]}  b6 {[%clk 0:00:04]} 33. Re3 {[%clk 0:01:39]}  Bd4 {[%clk 0:00:04]} 34. Rd3 {[%clk 0:01:39]}  c5 {[%clk 0:00:04]} 35. Rb3 {[%clk 0:01:40]}  Nc8 {[%clk 0:00:01]} 36. Bb7 {[%clk 0:01:40]} 1-0


[Site "https://www.chess.com"]

[Event "Titled Tuesday Blitz January 03 Early 2023"]
[White "Zanette, Edgard Vinicius"]
[Black "Khoroshev, Nikita"]
[WhiteFideId "2109263"]
[BlackFideId "14200287"]
[WhiteElo "2085"]
[BlackElo "2336"]
[Result "1-0"]
[Round "01"]
[TimeControl "180+2"]
[Date "2023.01.03"]
[WhiteClock "0:01:13"]
[BlackClock "0:00:08"]

1. e4 {[%clk 0:02:58]}  c5 {[%clk 0:02:59]} 2. Nf3 {[%clk 0:02:55]}  e6 {[%clk 0:02:59]} 3. c3 {[%clk 0:02:54]}  Nf6 {[%clk 0:02:52]} 4. Bd3 {[%clk 0:02:53]}  Nc6 {[%clk 0:02:46]} 5. Bc2 {[%clk 0:02:52]}  d5 {[%clk 0:02:41]} 6. e5 {[%clk 0:02:50]}  Nd7 {[%clk 0:02:40]} 7. d4 {[%clk 0:02:49]}  h6 {[%clk 0:02:38]} 8. a3 {[%clk 0:02:47]}  c4 {[%clk 0:02:30]} 9. b3 {[%clk 0:02:46]}  cxb3 {[%clk 0:02:29]} 10. Bxb3 {[%clk 0:02:45]}  b6 {[%clk 0:02:27]} 11. O-O {[%clk 0:02:43]}  Ba6 {[%clk 0:02:25]} 12. Re1 {[%clk 0:02:42]}  g5 {[%clk 0:02:25]} 13. Nfd2 {[%clk 0:02:37]}  Na5 {[%clk 0:02:17]} 14. Ba2 {[%clk 0:02:36]}  Rc8 {[%clk 0:02:14]} 15. Bb2 {[%clk 0:02:25]}  h5 {[%clk 0:02:09]} 16. Nf1 {[%clk 0:02:23]}  g4 {[%clk 0:02:05]} 17. Nbd2 {[%clk 0:02:21]}  Bh6 {[%clk 0:02:04]} 18. Rc1 {[%clk 0:02:05]}  Qg5 {[%clk 0:01:57]} 19. Ne3 {[%clk 0:02:00]}  Rg8 {[%clk 0:01:43]} 20. Qa4 {[%clk 0:01:51]}  Bb7 {[%clk 0:01:28]} 21. c4 {[%clk 0:01:39]}  dxc4 {[%clk 0:01:01]} 22. Ndxc4 {[%clk 0:01:36]}  Nxc4 {[%clk 0:00:56]} 23. Nxc4 {[%clk 0:01:36]}  Bf8 {[%clk 0:00:44]} 24. Qxa7 {[%clk 0:01:30]}  Rb8 {[%clk 0:00:24]} 25. Nxb6 {[%clk 0:01:24]}  g3 {[%clk 0:00:16]} 26. hxg3 {[%clk 0:01:20]}  h4 {[%clk 0:00:16]} 27. Nxd7 {[%clk 0:01:20]}  Kxd7 {[%clk 0:00:16]} 28. Qxb8 {[%clk 0:01:15]}  Bxg2 {[%clk 0:00:08]} 29. Rc7# {[%clk 0:01:13]} 1-0


[Site "https://www.chess.com"]